{"text_format":"1","workbook":"xlsx","n_sheets":5,"sheets":["Title Screen","Game","Inventory","Instructions","Recipe maker"],"not_rendered":{"charts":0,"images":2,"macros":1,"external_links":0,"defined_names":8,"comments":0,"pivot_tables":0},"unopened":[],"bounds":{"document_bytes":16777216,"sheet_cells":100000,"rows_first":2000,"rows_last":500,"rows_between":2000,"halvings":0,"cell_chars":16384,"cell_head_chars":4096},"cells_cut":0,"cells_raw":0,"read":"whole","date_system":"1900"}

{"sheet":"Title Screen","index":0,"n_rows":10,"n_cols":41,"rows_kept":10,"cut":false,"hidden":false,"merged":[]}
[]
[]
[]
[]
[]
[]
[null,null,null,null,null,null,null,null,null,null,null,null,null,null,null,null,null,null,null,null,null,null,null,null,null,null,null,null,null,null,null,null,null,null,null,null,null,null,null,null,{"$f":"RANDBETWEEN(1,10)","v":9}]
[]
[]
[null,null,null,null,null,null,null,null,null,null,null,null,null,null,null,null,null,null,null,null,null,null,null,null,null,null,null,null,null,null,null,null,null,null,null,null,null,null,null,null,{"$f":"IF(AO7=1,\"Now with more pivot tables!\",IF(AO7=2,\"Formulas, macros, and errors, oh my!\",IF(AO7=3,\"Still better than Bedrock!\",IF(AO7=4,\"Tubular!\",IF(AO7=5,\"Created by Nathan Boehm!\",IF(AO7=6,\"Inspired by Sethbling!\",IF(AO7=7,\"Also try Terraria!\",IF(AO7=8,\"Yo mama fat!\",IF(AO7=9,\"Quick, pretend you're working!\",IF(AO7=10,\"Also try Solitaire!\",\"This message will never appear on the splash screen, isn't that weird?\"))))))))))","v":"Quick, pretend you're working!"}]

{"sheet":"Game","index":1,"n_rows":51,"n_cols":30,"rows_kept":51,"cut":false,"hidden":false,"merged":[]}
[null,null,null,null,null,null,null,null,null,{"$f":"IF(Inventory!H9=0,\" \",Inventory!H9)","v":" "},{"$f":"IF(Inventory!I9=0,\" \",Inventory!I9)","v":" "},{"$f":"IF(Inventory!J9=0,\" \",Inventory!J9)","v":" "},{"$f":"IF(Inventory!K9=0,\" \",Inventory!K9)","v":" "},{"$f":"IF(Inventory!L9=0,\" \",Inventory!L9)","v":" "},{"$f":"IF(Inventory!M9=0,\" \",Inventory!M9)","v":" "},{"$f":"IF(Inventory!N9=0,\" \",Inventory!N9)","v":" "},{"$f":"IF(Inventory!O9=0,\" \",Inventory!O9)","v":" "},{"$f":"IF(Inventory!P9=0,\" \",Inventory!P9)","v":" "}]
["Sky","Sky","Sky","Sky","Sky","Sky","Sky","Oak leaves","Sky","Sky","Sky","Sky","Sky","Sky","Sky","Sky","Sky","Sky","Sky","Sky","Sky","Sky","Sky","Sky","Sky","Sky","Oak leaves","Oak leaves"]
["Sky","Sky","Sky","Sky","Sky","Sky","Oak leaves","Oak leaves","Oak leaves","Sky","Sky","Sky","Sky","Sky","Sky","Sky","Sky","Sky","Sky",{"$f":"IF(INDIRECT(ADDRESS(ROW()-1,COLUMN()))=\"Sky\",\"Grass\",\"Dirt\")","v":"Grass"},{"$f":"IF(INDIRECT(ADDRESS(ROW()-1,COLUMN()))=\"Sky\",\"Grass\",\"Dirt\")","v":"Grass"},{"$f":"IF(INDIRECT(ADDRESS(ROW()-1,COLUMN()))=\"Sky\",\"Grass\",\"Dirt\")","v":"Grass"},{"$f":"IF(INDIRECT(ADDRESS(ROW()-1,COLUMN()))=\"Sky\",\"Grass\",\"Dirt\")","v":"Grass"},"Sky","Sky","Sky","Sky","Oak log"]
[{"$f":"IF(INDIRECT(ADDRESS(ROW()-1,COLUMN()))=\"Sky\",\"Grass\",\"Dirt\")","v":"Grass"},"Grass","Sky","Sky","Sky","Sky","Oak leaves","Oak leaves","Oak leaves","Sky","Sky","Sky","Sky","Sky","Sky","Sky","Sky","Sky",{"$f":"IF(INDIRECT(ADDRESS(ROW()-1,COLUMN()))=\"Sky\",\"Grass\",\"Dirt\")","v":"Grass"},{"$f":"IF(INDIRECT(ADDRESS(ROW()-1,COLUMN()))=\"Sky\",\"Grass\",\"Dirt\")","v":"Dirt"},"Dirt","Dirt","Dirt",{"$f":"IF(INDIRECT(ADDRESS(ROW()-1,COLUMN()))=\"Sky\",\"Grass\",\"Dirt\")","v":"Grass"},"Sky","Sky","Sky","Oak log"]
["Dirt","Dirt",{"$f":"IF(INDIRECT(ADDRESS(ROW()-1,COLUMN()))=\"Sky\",\"Grass\",\"Dirt\")","v":"Grass"},"Sky","Sky","Sky","Sky","Oak log","Sky","Sky","Sky","Sky","Sky","Sky","Sky","Sky","Sky","Sky",{"$f":"IF(INDIRECT(ADDRESS(ROW()-1,COLUMN()))=\"Sky\",\"Grass\",\"Dirt\")","v":"Dirt"},"Dirt","Dirt","Dirt","Dirt",{"$f":"IF(INDIRECT(ADDRESS(ROW()-1,COLUMN()))=\"Sky\",\"Grass\",\"Dirt\")","v":"Dirt"},{"$f":"IF(INDIRECT(ADDRESS(ROW()-1,COLUMN()))=\"Sky\",\"Grass\",\"Dirt\")","v":"Grass"},"Grass","Grass","Dirt"]
["Dirt","Dirt",{"$f":"IF(INDIRECT(ADDRESS(ROW()-1,COLUMN()))=\"Sky\",\"Grass\",\"Dirt\")","v":"Dirt"},{"$f":"IF(INDIRECT(ADDRESS(ROW()-1,COLUMN()))=\"Sky\",\"Grass\",\"Dirt\")","v":"Grass"},"Sky","Sky","Sky","Oak log","Sky","Sky","Sky","Sky","Sky","Sky","Sky","Sky","Sky",{"$f":"IF(INDIRECT(ADDRESS(ROW()-1,COLUMN()))=\"Sky\",\"Grass\",\"Dirt\")","v":"Grass"},"Dirt","Dirt","Dirt","Dirt","Dirt",{"$f":"IF(INDIRECT(ADDRESS(ROW()-1,COLUMN()))=\"Sky\",\"Grass\",\"Dirt\")","v":"Dirt"},"Dirt","Dirt","Dirt","Dirt"]
["Dirt","Dirt",{"$f":"IF(INDIRECT(ADDRESS(ROW()-1,COLUMN()))=\"Sky\",\"Grass\",\"Dirt\")","v":"Dirt"},{"$f":"IF(INDIRECT(ADDRESS(ROW()-1,COLUMN()))=\"Sky\",\"Grass\",\"Dirt\")","v":"Dirt"},{"$f":"IF(INDIRECT(ADDRESS(ROW()-1,COLUMN()))=\"Sky\",\"Grass\",\"Dirt\")","v":"Grass"},"Grass","Grass","Dirt","Grass",{"$f":"IF(INDIRECT(ADDRESS(ROW()-1,COLUMN()))=\"Sky\",\"Grass\",\"Dirt\")","v":"Grass"},{"$f":"IF(INDIRECT(ADDRESS(ROW()-1,COLUMN()))=\"Sky\",\"Grass\",\"Dirt\")","v":"Grass"},{"$f":"IF(INDIRECT(ADDRESS(ROW()-1,COLUMN()))=\"Sky\",\"Grass\",\"Dirt\")","v":"Grass"},"Grass","Grass","Grass","Grass","Grass",{"$f":"IF(INDIRECT(ADDRESS(ROW()-1,COLUMN()))=\"Sky\",\"Grass\",\"Dirt\")","v":"Dirt"},"Dirt",{"$f":"IF(INDIRECT(ADDRESS(ROW()-1,COLUMN()))=\"Sky\",\"Grass\",\"Dirt\")","v":"Dirt"},{"$f":"IF(INDIRECT(ADDRESS(ROW()-1,COLUMN()))=\"Sky\",\"Grass\",\"Dirt\")","v":"Dirt"},{"$f":"IF(INDIRECT(ADDRESS(ROW()-1,COLUMN()))=\"Sky\",\"Grass\",\"Dirt\")","v":"Dirt"},"Stone","Stone","Stone","Stone","Stone","Stone",null,"Disabled"]
["Stone","Stone","Stone",{"$f":"IF(INDIRECT(ADDRESS(ROW()-1,COLUMN()))=\"Sky\",\"Grass\",\"Dirt\")","v":"Dirt"},{"$f":"IF(INDIRECT(ADDRESS(ROW()-1,COLUMN()))=\"Sky\",\"Grass\",\"Dirt\")","v":"Dirt"},{"$f":"IF(INDIRECT(ADDRESS(ROW()-1,COLUMN()))=\"Sky\",\"Grass\",\"Dirt\")","v":"Dirt"},{"$f":"IF(INDIRECT(ADDRESS(ROW()-1,COLUMN()))=\"Sky\",\"Grass\",\"Dirt\")","v":"Dirt"},"Stone","Stone","Stone","Stone","Stone","Stone","Stone","Stone","Stone","Stone","Stone","Dirt",{"$f":"IF(INDIRECT(ADDRESS(ROW()-1,COLUMN()))=\"Sky\",\"Grass\",\"Dirt\")","v":"Dirt"},"Stone","Stone","Stone","Stone","Stone","Stone","Stone","Stone","N6",{"$f":"COLUMN(INDIRECT(AC8))","v":14}]
["Stone","Stone","Stone","Stone","Stone","Stone","Stone","Stone","Stone","Stone","Stone","Stone","Stone","Stone","Stone","Stone","Stone","Stone","Dirt","Stone","Stone","Stone","Stone","Stone","Stone","Stone","Stone","Stone",null,{"$f":"ROW(INDIRECT(AC8))","v":6}]
["Stone","Stone","Stone","Stone","Stone","Stone","Stone","Stone","Stone","Stone","Stone","Stone","Stone","Stone","Stone","Stone","Stone","Stone","Stone","Stone","Stone","Stone","Stone","Stone","Stone","Stone","Stone","Stone"]
["Stone","Stone","Stone","Stone","Stone","Stone","Stone","Stone","Stone","Stone","Stone","Stone","Stone","Stone","Stone","Stone","Stone","Stone","Stone","Stone","Stone","Stone","Stone","Stone","Stone","Stone","Stone","Stone"]
["Stone","Stone","Stone","Stone","Stone","Stone","Sky","Sky","Stone","Stone","Stone","Stone","Stone","Stone","Stone","Stone","Stone","Stone","Stone","Stone","Stone","Stone","Stone","Stone","Stone","Stone","Stone","Stone"]
["Stone","Stone","Stone","Stone","Stone","Sky","Sky","Sky","Sky","Sky","Sky","Sky","Sky","Sky","Sky","Coal ore","Coal ore","Stone","Stone","Stone","Stone","Stone","Stone","Stone","Stone","Stone","Stone","Stone"]
["Stone","Stone","Stone","Stone","Stone","Sky","Sky","Sky","Sky","Sky","Sky","Sky","Sky","Sky","Sky","Sky","Coal ore","Stone","Stone","Stone","Stone","Stone","Stone","Stone","Stone","Stone","Stone","Stone"]
["Stone","Stone","Stone","Stone","Stone","Stone","Sky","Sky","Sky","Sky","Sky","Sky","Sky","Sky","Sky","Sky","Sky","Sky","Stone","Stone","Stone","Stone","Stone","Stone","Stone","Stone","Stone","Stone"]
["Stone","Stone","Stone","Stone","Stone","Stone","Stone","Stone","Stone","Stone","Stone","Stone","Iron ore","Sky","Sky","Sky","Sky","Sky","Stone","Stone","Stone","Stone","Stone","Stone","Stone","Stone","Stone","Stone"]
["Stone","Stone","Stone","Stone","Stone","Stone","Stone","Stone","Stone","Stone","Stone","Stone","Iron ore","Iron ore","Iron ore","Stone","Sky","Sky","Stone","Stone","Stone","Stone","Stone","Stone","Stone","Stone","Stone","Stone"]
["Stone","Stone","Stone","Stone","Stone","Stone","Stone","Stone","Stone","Stone","Stone","Stone","Stone","Stone","Stone","Stone","Stone","Stone","Stone","Stone","Stone","Stone","Stone","Stone","Stone","Stone","Stone","Stone"]
["Stone","Stone","Stone","Stone","Stone","Stone","Stone","Stone","Stone","Stone","Stone","Stone","Stone","Stone","Stone","Stone","Stone","Stone","Stone","Stone","Stone","Stone","Stone","Stone","Stone","Stone","Stone","Stone"]
["Stone","Stone","Stone","Stone","Stone","Stone","Stone","Stone","Stone","Stone","Stone","Stone","Stone","Stone","Stone","Stone","Stone","Stone","Stone","Stone","Stone","Stone","Stone","Stone","Stone","Stone","Stone","Stone"]
["Stone","Stone","Stone","Stone","Stone","Stone","Stone","Stone","Stone","Stone","Stone","Stone","Stone","Stone","Stone","Stone","Stone","Stone","Stone","Stone","Stone","Stone","Stone","Stone","Stone","Stone","Stone","Stone"]
["Stone","Stone","Stone","Stone","Stone","Stone","Stone","Stone","Stone","Stone","Stone","Stone","Stone","Stone","Stone","Stone","Stone","Stone","Stone","Stone","Stone","Stone","Stone","Stone","Stone","Stone","Stone","Stone"]
["Stone","Stone","Stone","Stone","Stone","Stone","Stone","Stone","Stone","Stone","Stone","Stone","Stone","Stone","Stone","Stone","Stone","Stone","Stone","Stone","Stone","Stone","Stone","Stone","Stone","Stone","Stone","Stone"]
["Stone","Stone","Stone","Stone","Stone","Stone","Stone","Stone","Stone","Stone","Stone","Stone","Stone","Stone","Stone","Stone","Stone","Stone","Stone","Stone","Stone","Stone","Stone","Stone","Stone","Stone","Stone","Stone"]
["Stone","Stone","Stone","Stone","Stone","Stone","Stone","Stone","Stone","Stone","Stone","Stone","Stone","Stone","Stone","Stone","Stone","Stone","Stone","Stone","Stone","Stone","Stone","Stone","Stone","Stone","Stone","Stone"]
["Stone","Stone","Stone","Stone","Stone","Stone","Stone","Stone","Stone","Stone","Stone","Stone","Stone","Stone","Stone","Stone","Stone","Stone","Stone","Stone","Stone","Stone","Stone","Stone","Stone","Stone","Stone","Stone"]
["Stone","Stone","Stone","Stone","Stone","Stone","Stone","Stone","Stone","Stone","Stone","Stone","Stone","Stone","Stone","Stone","Stone","Stone","Stone","Stone","Stone","Stone","Stone","Stone","Stone","Stone","Stone","Stone"]
["Stone","Stone","Stone","Stone","Stone","Stone","Stone","Stone","Stone","Stone","Stone","Stone","Stone","Stone","Stone","Stone","Stone","Stone","Stone","Stone","Stone","Stone","Stone","Stone","Stone","Stone","Stone","Stone"]
["Stone","Stone","Stone","Stone","Stone","Stone","Stone","Stone","Stone","Stone","Stone","Stone","Stone","Stone","Stone","Stone","Stone","Stone","Stone","Stone","Stone","Stone","Stone","Stone","Stone","Stone","Stone","Stone"]
["Stone","Stone","Stone","Stone","Stone","Stone","Stone","Stone","Stone","Stone","Stone","Stone","Stone","Stone","Stone","Stone","Stone","Stone","Stone","Stone","Stone","Stone","Stone","Stone","Stone","Stone","Stone","Stone"]
["Stone","Stone","Stone","Stone","Stone","Stone","Stone","Stone","Stone","Stone","Stone","Stone","Stone","Stone","Stone","Stone","Stone","Stone","Stone","Stone","Stone","Stone","Stone","Stone","Stone","Stone","Stone","Stone"]
["Stone","Stone","Stone","Stone","Stone","Stone","Stone","Stone","Stone","Stone","Stone","Stone","Stone","Stone","Stone","Stone","Stone","Stone","Stone","Stone","Stone","Stone","Stone","Stone","Stone","Stone","Stone","Stone"]
["Stone","Stone","Stone","Stone","Stone","Stone","Stone","Stone","Stone","Stone","Stone","Stone","Stone","Stone","Stone","Stone","Stone","Stone","Stone","Stone","Stone","Stone","Stone","Stone","Stone","Stone","Stone","Stone"]
["Stone","Stone","Stone","Stone","Stone","Stone","Stone","Stone","Stone","Stone","Stone","Stone","Stone","Stone","Stone","Stone","Stone","Stone","Stone","Stone","Stone","Stone","Stone","Stone","Stone","Stone","Stone","Stone"]
["Stone","Stone","Stone","Stone","Stone","Stone","Stone","Stone","Stone","Stone","Stone","Stone","Stone","Stone","Stone","Stone","Stone","Stone","Stone","Stone","Stone","Stone","Stone","Stone","Stone","Stone","Stone","Stone"]
["Stone","Stone","Stone","Stone","Stone","Stone","Stone","Stone","Stone","Stone","Stone","Stone","Stone","Stone","Stone","Stone","Stone","Stone","Stone","Stone","Stone","Stone","Stone","Stone","Stone","Stone","Stone","Stone"]
["Stone","Stone","Stone","Stone","Stone","Stone","Stone","Stone","Stone","Stone","Stone","Stone","Stone","Stone","Stone","Stone","Stone","Stone","Stone","Stone","Stone","Stone","Stone","Stone","Stone","Stone","Stone","Stone"]
["Stone","Stone","Stone","Stone","Stone","Stone","Stone","Stone","Stone","Stone","Stone","Stone","Stone","Stone","Stone","Stone","Stone","Stone","Stone","Stone","Stone","Stone","Stone","Stone","Stone","Stone","Stone","Stone"]
["Stone","Stone","Stone","Stone","Stone","Stone","Stone","Stone","Stone","Stone","Stone","Stone","Stone","Stone","Stone","Stone","Stone","Stone","Stone","Stone","Stone","Stone","Stone","Stone","Stone","Stone","Stone","Stone"]
["Stone","Stone","Stone","Stone","Stone","Stone","Stone","Stone","Stone","Stone","Stone","Stone","Stone","Stone","Stone","Stone","Stone","Stone","Stone","Stone","Stone","Stone","Stone","Stone","Stone","Stone","Stone","Stone"]
["Stone","Stone","Stone","Stone","Stone","Stone","Stone","Stone","Stone","Stone","Stone","Stone","Stone","Stone","Stone","Stone","Stone","Stone","Stone","Stone","Stone","Stone","Stone","Stone","Stone","Stone","Stone","Stone"]
["Stone","Stone","Stone","Stone","Stone","Stone","Stone","Stone","Stone","Stone","Stone","Stone","Stone","Stone","Stone","Stone","Stone","Stone","Stone","Stone","Stone","Stone","Stone","Stone","Stone","Stone","Stone","Stone"]
["Stone","Stone","Stone","Stone","Stone","Stone","Stone","Stone","Stone","Stone","Stone","Stone","Stone","Stone","Stone","Stone","Stone","Stone","Stone","Stone","Stone","Stone","Stone","Stone","Stone","Stone","Stone","Stone"]
["Stone","Stone","Stone","Stone","Stone","Stone","Stone","Stone","Stone","Stone","Stone","Stone","Stone","Stone","Stone","Stone","Stone","Stone","Stone","Stone","Stone","Stone","Stone","Stone","Stone","Stone","Stone","Stone"]
["Stone","Stone","Stone","Stone","Stone","Stone","Stone","Stone","Stone","Stone","Diamond ore","Stone","Stone","Stone","Stone","Stone","Stone","Stone","Stone","Stone","Stone","Stone","Stone","Stone","Stone","Stone","Stone","Stone"]
["Stone","Stone","Stone","Stone","Stone","Stone","Stone","Stone","Stone","Diamond ore","Diamond ore","Stone","Stone","Stone","Stone","Stone","Stone","Stone","Stone","Stone","Stone","Stone","Stone","Stone","Stone","Stone","Stone","Stone"]
["Stone","Stone","Stone","Stone","Stone","Stone","Stone","Stone","Stone","Stone","Stone","Stone","Stone","Stone","Stone","Stone","Stone","Stone","Stone","Stone","Stone","Stone","Stone","Stone","Stone","Stone","Stone","Stone"]
["Stone","Stone","Stone","Stone","Stone","Stone","Stone","Stone","Stone","Stone","Stone","Stone","Stone","Stone","Stone","Stone","Stone","Stone","Stone","Stone","Stone","Stone","Stone","Stone","Stone","Stone","Stone","Stone"]
["Stone","Stone","Bedrock","Stone","Stone","Stone","Stone","Stone","Stone","Stone","Bedrock","Stone","Stone","Stone","Stone","Bedrock","Stone","Stone","Stone","Stone","Bedrock","Stone","Stone","Stone","Bedrock","Stone","Bedrock","Stone"]
["Stone","Bedrock","Stone","Bedrock","Bedrock","Stone","Bedrock","Stone","Bedrock","Stone","Stone","Bedrock","Bedrock","Stone","Bedrock","Bedrock","Stone","Bedrock","Stone","Bedrock","Stone","Stone","Bedrock","Stone","Bedrock","Bedrock","Stone","Stone"]
["Bedrock","Bedrock","Bedrock","Bedrock","Bedrock","Bedrock","Bedrock","Bedrock","Bedrock","Bedrock","Bedrock","Bedrock","Bedrock","Bedrock","Bedrock","Bedrock","Bedrock","Bedrock","Bedrock","Bedrock","Bedrock","Bedrock","Bedrock","Bedrock","Bedrock","Bedrock","Bedrock","Bedrock"]

{"sheet":"Inventory","index":2,"n_rows":12,"n_cols":16,"rows_kept":12,"cut":false,"hidden":false,"merged":[]}
["Utilities",null,null,null,null,null,"Inventory"]
["Trash",null,null,null,null,null,null,null,null,null,null,null,null,null,null,{"$f":"_xlfn.CONCAT(A12:U16)","v":" "}]
["Divider"]
[]
[]
[]
[]
[]
[]
[]
[]
[{"$f":"IF(AND(M2=\"Oak log\",AND(M3=\"\",AND(N2=\"\",N3=\"\"))),\"Oak planks 4\",IF(AND(M2=\"\",AND(M3=\"Oak log\",AND(N2=\"\",N3=\"\"))),\"Oak planks 4\",IF(AND(M2=\"\",AND(M3=\"\",AND(N2=\"Oak log\",N3=\"\"))),\"Oak planks 4\",IF(AND(M2=\"\",AND(M3=\"\",AND(N2=\"\",N3=\"Oak log\"))),\"Oak planks 4\",\"\"))))","v":""},{"$f":"IF(AND(M2=\"Oak planks\",AND(M3=\"Oak planks\",AND(N2=\"Oak planks\",N3=\"Oak planks\"))),\"Crafting table\",\"\")","v":""},{"$f":"IF(AND(M2=\"Oak planks\",AND(M3=\"Oak planks\",AND(N2=\"\",N3=\"\"))),\"Stick 4\",IF(AND(M2=\"\",AND(M3=\"\",AND(N2=\"Oak planks\",N3=\"Oak planks\"))),\"Stick 4\",\"\"))","v":""},{"$f":"IF(AND(L1=\"Oak planks\",AND(M1=\"Oak planks\",AND(N1=\"Oak planks\",AND(L2=\"\",AND(M2=\"Stick\",AND(N2=\"\",AND(L3=\"\",AND(M3=\"Stick\",N3=\"\")))))))),\"Wooden pickaxe\",\"\")","v":""},{"$f":"IF(AND(L1=\"Cobblestone\",AND(M1=\"Cobblestone\",AND(N1=\"Cobblestone\",AND(L2=\"\",AND(M2=\"Stick\",AND(N2=\"\",AND(L3=\"\",AND(M3=\"Stick\",N3=\"\")))))))),\"Stone pickaxe\",\"\")","v":""},{"$f":"IF(AND(L1=\"Iron ingot\",AND(M1=\"Iron ingot\",AND(N1=\"Iron ingot\",AND(L2=\"\",AND(M2=\"Stick\",AND(N2=\"\",AND(L3=\"\",AND(M3=\"Stick\",N3=\"\")))))))),\"Iron pickaxe\",\"\")","v":""},{"$f":"IF(AND(L1=\"Diamond\",AND(M1=\"Diamond\",AND(N1=\"Diamond\",AND(L2=\"\",AND(M2=\"Stick\",AND(N2=\"\",AND(L3=\"\",AND(M3=\"Stick\",N3=\"\")))))))),\"Diamond pickaxe\",\"\")","v":""},{"$f":"IF(AND(L1=\"Stick\",AND(M1=\"\",AND(N1=\"Stick\",AND(L2=\"Stick\",AND(M2=\"Stick\",AND(N2=\"Stick\",AND(L3=\"Stick\",AND(M3=\"\",N3=\"Stick\")))))))),\"Ladder 3\",\" \")","v":" "}]

{"sheet":"Instructions","index":3,"n_rows":19,"n_cols":2,"rows_kept":19,"cut":false,"hidden":false,"merged":[]}
["Cheat Sheet:"]
[]
["\"Title Screen\" tab:"]
["doesn't do anything special"]
[" "]
["\"Game\" tab:"]
["Click \"Enable WASD\" to turn on Steve movement - Excel will eat the WASD keys and move him around."]
["Click \"Disable WASD\" to turn it off again so Excel stops eating the WASD keys (otherwise typing could be problematic)"]
[null,"(These should be auto-triggered when you switch to and from the Game tab, so you shouldn’t need to click either of them unless you have to disable it to modify the sheet)"]
["Click \"Reset Coordinates\" to set the in-game coordinates to the numbers below the button."]
["IMPORTANT: If you get a popup saying something about an object defined error, change the value of cell AC8 to the cooridate of steve (spawn coordinate is N6). Then press the \"Reset Coordinates\" button."]
["Click on an item in the hotbar to \"select\" it (it should turn bold.)"]
["Click on a non-inventory square to interact with it."]
["If you need to move the Enable/DisableWASD buttons, right clicking them should let you drag them around."]
[]
["\"Inventory\" tab:"]
["Click an item to select it."]
["Click another item to swap their places."]
["Click the crafting grid to take one out of the stack of the selected item and put it into the grid."]

{"sheet":"Recipe maker","index":4,"n_rows":3,"n_cols":17,"rows_kept":3,"cut":false,"hidden":false,"merged":[]}
[null,null,null,null,null,null,null,null,null,null,"Stick",null,"Stick",null,null,null,{"$f":"IF(AND(L2=\"Oak planks\",AND(L3=\"Oak planks\",AND(M2=\"Oak planks\",M3=\"Oak planks\"))),\"Crafting table\",\" \")","v":" "}]
[null,null,null,null,null,null,null,null,null,null,"Stick","Stick","Stick",null,"Ladder",null,{"$f":"_xlfn.CONCAT(\"=IF(AND(K1=\"\"\",K1,\"\"\",AND(L1=\"\"\",L1,\"\"\",AND(M1=\"\"\",M1,\"\"\",AND(K2=\"\"\",K2,\"\"\",AND(L2=\"\"\",L2,\"\"\",AND(M2=\"\"\",M2,\"\"\",AND(K3=\"\"\",K3,\"\"\",AND(L3=\"\"\",L3,\"\"\",M3=\"\"\",M3,\"\"\")))))))),\"\"\",O2,\"\"\",\"\" \"\")\")","v":"=IF(AND(K1=\"Stick\",AND(L1=\"\",AND(M1=\"Stick\",AND(K2=\"Stick\",AND(L2=\"Stick\",AND(M2=\"Stick\",AND(K3=\"Stick\",AND(L3=\"\",M3=\"Stick\")))))))),\"Ladder\",\" \")"}]
[null,null,null,null,null,null,null,null,null,null,"Stick",null,"Stick"]